fUSD/lending_fUSD_20250113
["ID","MTS","AMOUNT","RATE_DAILY","PERIOD"]
[348725432,1736754640361,-500.0,9.998e-05,2]
[348725433,1736754640371,-500.0,9.998e-05,2]
[348725434,1736754640380,-500.0,9.998e-05,2]
[348725435,1736754640389,-500.0,9.998e-05,2]
[348725436,1736754640398,-501.8279762,9.998e-05,2]
[348725437,1736754640407,-500.0,9.998e-05,2]
[348725438,1736754640416,-500.0,9.998e-05,2]
[348725439,1736754640425,-500.0,9.998e-05,2]
[348725440,1736754640434,-500.0,9.998e-05,2]
[348725441,1736754640443,-508.89596525,9.998e-05,2]
[348725442,1736754640452,-500.0,9.998e-05,2]
[348725443,1736754640461,-500.0,9.998e-05,2]
[348725444,1736754640471,-500.0,9.998e-05,2]
[348725445,1736754640479,-574.42,9.998e-05,2]
[348725446,1736754640489,-500.0,9.998e-05,2]
[348725447,1736754640498,-679.8,9.998e-05,2]
[348725448,1736754640508,-500.0,9.998e-05,2]
[348725449,1736754640518,-500.0,9.998e-05,2]
[348725450,1736754640527,-500.59029031,9.998e-05,2]
[348725451,1736754640536,-500.0,9.998e-05,2]
[348725452,1736754640545,-538.44,9.998e-05,2]
[348725453,1736754640554,-500.0,9.998e-05,2]
[348725454,1736754640563,-500.0,9.998e-05,2]
[348725455,1736754640574,-500.0,9.998e-05,2]
[348725456,1736754640584,-546.71,9.998e-05,2]
[348725457,1736754640593,-500.0,9.998e-05,2]
[348725458,1736754640602,-500.0,9.998e-05,2]
[348725459,1736754640611,-502.63534614,9.998e-05,2]
[348725460,1736754640620,-501.39946164,9.998e-05,2]
[348725461,1736754640630,-500.0,9.998e-05,2]
[348725462,1736754640639,-500.0,9.998e-05,2]
[348725463,1736754640648,-500.0,9.998e-05,2]
[348725464,1736754640658,-500.0,9.998e-05,2]
[348725465,1736754640667,-500.0,9.998e-05,2]
[348725466,1736754640676,-500.0,9.998e-05,2]
[348725467,1736754640685,-500.0,9.998e-05,2]
[348725468,1736754640694,-613.85,9.998e-05,2]
[348725469,1736754640703,-500.0,9.998e-05,2]
[348725470,1736754640711,-500.0,9.998e-05,2]
[348725471,1736754640720,-500.0,9.998e-05,2]
[348725472,1736754640729,-500.0,9.998e-05,2]
[348725473,1736754640738,-500.0,9.998e-05,2]
[348725474,1736754640747,-500.0,9.998e-05,2]
[348725475,1736754640757,-562.22,9.998e-05,2]
[348725476,1736754640767,-500.0,9.998e-05,2]
[348725477,1736754640776,-500.0,9.998e-05,2]
[348725478,1736754640785,-500.0,9.998e-05,2]
[348725479,1736754640794,-500.0,9.998e-05,2]
[348725480,1736754640803,-500.0,9.998e-05,2]
[348725481,1736754640812,-609.36,9.998e-05,2]
[348725482,1736754640821,-500.0,9.998e-05,2]
[348725483,1736754640830,-502.26,9.998e-05,2]
[348725484,1736754640838,-511.88,9.998e-05,2]
[348725485,1736754640847,-500.0,9.998e-05,2]
[348725486,1736754640856,-500.0,9.998e-05,2]
[348725487,1736754640865,-621.14,9.998e-05,2]
[348725488,1736754640874,-500.0,9.998e-05,2]
[348725489,1736754640883,-510.90905081,9.998e-05,2]
[348725490,1736754640892,-500.0,9.998e-05,2]
[348725491,1736754640901,-500.0,9.998e-05,2]
[348725492,1736754640910,-500.0,9.998e-05,2]
[348725493,1736754640919,-500.0,9.998e-05,2]
[348725494,1736754640927,-500.0,9.998e-05,2]
[348725495,1736754640937,-500.0,9.998e-05,2]
[348725496,1736754640946,-500.03217928,9.998e-05,2]
[348725497,1736754640955,-500.0,9.998e-05,2]
[348725498,1736754640964,-500.0,9.998e-05,2]
[348725499,1736754640973,-500.0,9.998e-05,2]
[348725500,1736754640982,-507.15,9.998e-05,2]
[348725501,1736754640991,-500.0,9.998e-05,2]
[348725502,1736754641000,-961.927568,9.998e-05,2]
[348725503,1736754641011,-523.35,9.998e-05,2]
[348725504,1736754641020,-946.56033,9.998e-05,2]
[348725505,1736754641029,-500.0,9.998e-05,2]
[348725506,1736754641038,-500.0,9.998e-05,2]
[348725507,1736754641047,-500.0,9.998e-05,2]
[348725508,1736754641056,-500.0,9.998e-05,2]
[348725509,1736754641065,-2292.91,9.998e-05,2]
[348725510,1736754641074,-500.0,9.998e-05,2]
[348725511,1736754641083,-500.0,9.998e-05,2]
[348725512,1736754641093,-500.0,9.998e-05,2]
[348725513,1736754641102,-2014.21,9.998e-05,2]
[348725514,1736754641111,-500.0,9.998e-05,2]
[348725515,1736754641120,-500.0,9.998e-05,2]
[348725516,1736754641129,-500.84,9.998e-05,2]
[348725517,1736754641138,-523.63,9.998e-05,2]
[348725518,1736754641147,-2057.2,9.998e-05,2]
[348725519,1736754641156,-500.0,9.998e-05,2]
[348725520,1736754641165,-500.0,9.998e-05,2]
[348725521,1736754641174,-500.0,9.998e-05,2]
[348725522,1736754641184,-500.0,9.998e-05,2]
[348725523,1736754641194,-500.0,9.998e-05,2]
[348725524,1736754641204,-500.0,9.998e-05,2]
[348725525,1736754641213,-500.0,9.998e-05,2]
[348725526,1736754641223,-500.0,9.998e-05,2]
[348725527,1736754641233,-500.0,9.998e-05,2]
[348725528,1736754641242,-500.0,9.998e-05,2]
[348725529,1736754641251,-500.0,9.998e-05,2]
[348725530,1736754641262,-500.0,9.998e-05,2]
[348725531,1736754641271,-500.0,9.998e-05,2]
[348725532,1736754641281,-500.0,9.998e-05,2]
[348725533,1736754641290,-656.41,9.998e-05,2]
[348725534,1736754641300,-500.0,9.998e-05,2]
[348725535,1736754641310,-500.0,9.998e-05,2]
[348725536,1736754641319,-500.0,9.998e-05,2]
[348725537,1736754641329,-500.0,9.998e-05,2]
[348725538,1736754641339,-500.0,9.998e-05,2]
[348725539,1736754641347,-500.0,9.998e-05,2]
[348725540,1736754641356,-500.0,9.998e-05,2]
[348725541,1736754641365,-518.34,9.998e-05,2]
[348725542,1736754641374,-500.0,9.998e-05,2]
[348725543,1736754641384,-500.0,9.998e-05,2]
[348725544,1736754641394,-740.67,9.998e-05,2]
[348725545,1736754641404,-500.0,9.998e-05,2]
[348725546,1736754641414,-513.07072009,9.998e-05,2]
[348725547,1736754641425,-500.0,9.998e-05,2]
[348725548,1736754641435,-500.0,9.998e-05,2]
[348725549,1736754641446,-500.0,9.998e-05,2]
[348725550,1736754641456,-500.0,9.998e-05,2]
[348725551,1736754641466,-500.0,9.998e-05,2]
[348725552,1736754641475,-500.0,9.998e-05,2]
[348725553,1736754641488,-500.0,9.999e-05,2]
[348725554,1736754641499,-500.0,9.999e-05,2]
[348725555,1736754641510,-500.0,9.999e-05,2]
[348725556,1736754641519,-838.23,9.999e-05,2]
[348725557,1736754641529,-1002.54,9.999e-05,2]
[348725558,1736754641538,-925.65,9.999e-05,2]
[348725559,1736754641548,-500.0,9.999e-05,2]
[348725560,1736754641557,-500.0,9.999e-05,2]
[348725561,1736754641566,-500.0,9.999e-05,2]
[348725562,1736754641580,-500.0,9.999e-05,2]
[348725563,1736754641590,-405.756,9.999e-05,2]
[348725564,1736754641600,-701.47,9.999e-05,2]
[348725565,1736754641610,-2045.55,9.999e-05,2]
[348725566,1736754641620,-1043.64,9.999e-05,2]
[348725567,1736754641629,-2111.23,9.999e-05,2]
[348725568,1736754641640,-500.0,9.999e-05,2]
[348725569,1736754641652,-2596.83,9.999e-05,2]
[348725570,1736754641663,-4712119.23870146,0.0001,2]
[348725571,1736754641674,-160189.77859609,0.0001,2]
[348725572,1736754641684,-157.40095955,0.0001,2]
[348725573,1736754641695,-183.71,0.0001,2]
[348725574,1736754641704,-2000.0,0.0001,2]
[348725575,1736754641713,-200.0,0.0001,2]
[348725576,1736754641723,-2000.0,0.0001,2]
[348725577,1736754641731,-200.0,0.0001,2]
[348725578,1736754641741,-3000.0,0.0001,2]
[348725579,1736754641751,-211596.0,0.0001,2]
[348725580,1736754641762,-1935.84132736,0.0001,2]
[348725581,1736754641771,-153.94268649,0.0001,2]
[348725582,1736754641780,-2000.0,0.0001,2]
[348725583,1736754641789,-200.0,0.0001,2]
[348725584,1736754641798,-245.46982778,0.0001,2]
[348725585,1736754641808,-1290.91391177,0.0001,2]
[348725586,1736754641817,-1290.91391177,0.0001,2]
[348725587,1736754641826,-183.5108653,0.0001,2]
[348725588,1736754641835,-1788.20069029,0.0001,2]
[348725589,1736754641844,-233.25659467,0.0001,2]
[348725590,1736754641853,-233.25659439,0.00010003,2]
[348725591,1736754641862,-2000.0,0.000101,2]
[348725592,1736754641871,-200.0,0.000101,2]
[348725593,1736754641880,-2000.0,0.000101,2]
[348725594,1736754641889,-200.0,0.000101,2]
[348725595,1736754641898,-2000.0,0.000101,2]
[348725596,1736754641907,-200.0,0.000101,2]
[348725597,1736754641916,-233.25659439,0.00010107,2]
[348725598,1736754641925,-403.26,0.00010137,2]
[348725599,1736754641934,-508.44,0.00010137,2]
[348725600,1736754641943,-411.4814621,0.00010169,2]
[348725601,1736754641952,-258.1238,0.0001017,2]
[348725602,1736754641961,-791.1,0.0001017,2]
[348725603,1736754641970,-838.07,0.0001017,2]
[348725604,1736754641979,-684.1,0.0001017,2]
[348725605,1736754641988,-500.0,0.0001017,2]
[348725606,1736754641997,-842.12,0.0001017,2]
[348725607,1736754642006,-561.75,0.0001017,2]
[348725608,1736754642016,-761.74,0.0001017,2]
[348725609,1736754642025,-624.04,0.0001017,2]
[348725610,1736754642034,-994.62,0.0001017,2]
[348725611,1736754642044,-1234.57,0.0001017,2]
[348725612,1736754642054,-1239.29,0.0001017,2]
[348725613,1736754642062,-2277.93,0.0001017,2]
[348725614,1736754642072,-3505.73,0.0001017,2]
[348725615,1736754642082,-697.48,0.0001017,2]
[348725616,1736754642091,-606.08,0.0001017,2]
[348725617,1736754642274,-500.0,0.0001017,2]
[348725618,1736754642284,-1622.8,0.0001017,2]
[348725619,1736754642294,-600.38,0.0001017,2]
[348725620,1736754642303,-1646.76,0.0001017,2]
[348725621,1736754642313,-939.15,0.0001017,2]
[348725622,1736754642322,-500.0,0.0001017,2]
[348725623,1736754642332,-580.46,0.0001017,2]
[348725624,1736754642342,-963.53,0.0001017,2]
[348725625,1736754642351,-850.4,0.0001017,2]
[348725626,1736754642361,-500.0,0.0001017,2]
[348725627,1736754642370,-556.44,0.0001017,2]
[348725628,1736754642379,-158.07608924,0.00010171,2]
[348725629,1736754642388,-500.0,0.00010171,2]
[348725630,1736754642397,-500.0,0.00010171,2]
[348725631,1736754642407,-310.86265037,0.00010171,2]
[348725632,1736754642416,-500.0,0.00010171,2]
[348725633,1736754642425,-500.0,0.00010171,2]
[348725634,1736754642435,-518.03228948,0.00010171,2]
[348725635,1736754642444,-500.0,0.00010171,2]
[348725636,1736754642453,-573.13,0.00010171,2]
[348725637,1736754642462,-500.0,0.00010171,2]
[348725638,1736754642471,-500.0,0.00010171,2]
[348725639,1736754642481,-500.0,0.00010171,2]
[348725640,1736754642489,-500.0,0.00010171,2]
[348725641,1736754642498,-500.0,0.00010171,2]
[348725642,1736754642507,-500.0,0.00010171,2]
[348725643,1736754642516,-500.0,0.00010171,2]
[348725644,1736754642525,-500.0,0.00010171,2]
[348725645,1736754642534,-500.0,0.00010171,2]
[348725646,1736754642543,-503.20554004,0.00010171,2]
[348725647,1736754642552,-186.62821341,0.00010171,2]
[348725648,1736754642561,-500.0,0.00010171,2]
[348725649,1736754642571,-589.5,0.00010171,2]
[348725650,1736754642583,-500.0,0.00010171,2]
[348725651,1736754642592,-604.9,0.00010171,2]
[348725652,1736754642601,-500.0,0.00010171,2]
[348725653,1736754642610,-687.18,0.00010171,2]
[348725654,1736754642619,-629.19,0.00010171,2]
[348725655,1736754642628,-500.0,0.00010171,2]
[348725656,1736754642638,-285.94496118,0.00010171,2]
[348725657,1736754642647,-500.0,0.00010171,2]
[348725658,1736754642656,-500.0,0.00010171,2]
[348725659,1736754642665,-365.45726447,0.00010171,2]
[348725660,1736754642674,-500.0,0.00010171,2]
[348725661,1736754642683,-500.0,0.00010171,2]
[348725662,1736754642692,-500.0,0.00010171,2]
[348725663,1736754642701,-500.0,0.00010171,2]
[348725664,1736754642710,-500.0,0.00010171,2]
[348725665,1736754642720,-500.0,0.00010171,2]
[348725666,1736754642729,-500.0,0.00010171,2]
[348725667,1736754642738,-500.0,0.00010171,2]
[348725668,1736754642747,-586.83,0.00010171,2]
[348725669,1736754642758,-500.0,0.00010171,2]
[348725670,1736754642767,-500.0,0.00010171,2]
[348725671,1736754642777,-1533.31,0.00010171,2]
[348725672,1736754642786,-286.50524137,0.00010171,2]
[348725673,1736754642795,-500.0,0.00010171,2]
[348725674,1736754642804,-585.33,0.00010171,2]
[348725675,1736754642813,-500.0,0.00010171,2]
[348725676,1736754642823,-1052.64,0.00010171,2]
[348725677,1736754642832,-1938.6,0.00010171,2]
[348725678,1736754642841,-691.3,0.00010171,2]
[348725679,1736754642851,-500.0,0.00010171,2]
[348725680,1736754642860,-500.0,0.00010171,2]
[348725681,1736754642870,-684.59,0.00010171,2]
[348725682,1736754642879,-500.0,0.00010171,2]
[348725683,1736754642889,-500.0,0.00010171,2]
[348725684,1736754642898,-622.6,0.00010171,2]
[348725685,1736754642908,-500.0,0.00010171,2]
[348725686,1736754642917,-2516.75,0.00010171,2]
[348725687,1736754642927,-779.49,0.00010171,2]
[348725688,1736754642936,-500.0,0.00010171,2]
[348725689,1736754642945,-716.11,0.00010171,2]
[348725690,1736754642954,-500.0,0.00010171,2]
[348725691,1736754642964,-733.27,0.00010171,2]
[348725692,1736754642973,-1118.11,0.00010171,2]
[348725693,1736754642982,-500.0,0.00010171,2]
[348725694,1736754642991,-500.0,0.00010171,2]
[348725695,1736754643000,-500.0,0.00010171,2]
[348725696,1736754643012,-1755.67,0.00010171,2]
[348725697,1736754643022,-500.0,0.00010171,2]
[348725698,1736754643031,-1115.1,0.00010171,2]
[348725699,1736754643040,-881.4,0.00010171,2]
[348725700,1736754643049,-686.27,0.00010171,2]
[348725701,1736754643059,-1011.51,0.00010171,2]
[348725702,1736754643068,-937.45,0.00010171,2]
[348725703,1736754643078,-500.0,0.00010171,2]
[348725705,1736754643087,-1286.18,0.00010171,2]
[348725706,1736754643096,-949.29,0.00010171,2]
[348725707,1736754643105,-767.32,0.00010171,2]
[348725708,1736754643115,-500.0,0.00010172,2]
[348725709,1736754643124,-641.3574679,0.00010172,2]
[348725710,1736754643133,-509.18290027,0.00010172,2]
[348725711,1736754643143,-500.0,0.00010172,2]
[348725712,1736754643152,-500.0,0.00010172,2]
[348725713,1736754643161,-500.0,0.00010172,2]
[348725714,1736754643170,-184.10837464,0.00010172,2]
[348725715,1736754643180,-500.0,0.00010172,2]
[348725716,1736754643189,-507.09747017,0.00010172,2]
[348725717,1736754643199,-500.0,0.00010172,2]
[348725718,1736754643208,-500.0,0.00010172,2]
[348725720,1736754643217,-500.0,0.00010172,2]
[348725721,1736754643227,-525.67465886,0.00010172,2]
[348725722,1736754643236,-509.07607818,0.00010172,2]
[348725723,1736754643245,-349.65780137,0.00010172,2]
[348725724,1736754643255,-517.75517115,0.00010172,2]
[348725725,1736754643267,-500.0,0.00010172,2]
[348725727,1736754643276,-500.0,0.00010172,2]
[348725729,1736754643285,-540.32,0.00010172,2]
[348725731,1736754643294,-559.61,0.00010172,2]
[348725733,1736754643304,-500.0,0.00010172,2]
[348725735,1736754643313,-500.0,0.00010172,2]
[348725737,1736754643322,-500.0,0.00010172,2]
[348725739,1736754643332,-346.8648699,0.00010172,2]
[348725741,1736754643341,-526.59,0.00010172,2]
[348725744,1736754643351,-500.0,0.00010172,2]
[348725745,1736754643361,-500.0,0.00010172,2]
[348725746,1736754643371,-500.0,0.00010172,2]
[348725747,1736754643381,-918.99,0.00010172,2]
[348725748,1736754643390,-500.0,0.00010172,2]
[348725749,1736754643400,-500.0,0.00010172,2]
[348725750,1736754643409,-500.0,0.00010172,2]
[348725751,1736754643419,-1733.87,0.00010172,2]
[348725752,1736754643429,-1207.16,0.00010172,2]
[348725753,1736754643439,-840.93,0.00010172,2]
[348725754,1736754643448,-500.0,0.00010172,2]
[348725755,1736754643458,-1216.06,0.00010172,2]
[348725756,1736754643467,-2002.45,0.00010172,2]
[348725757,1736754643477,-729.29,0.00010172,2]
[348725758,1736754643486,-590.87,0.00010172,2]
[348725759,1736754643496,-500.0,0.00010172,2]
[348725760,1736754643506,-711.23,0.00010172,2]
[348725761,1736754643518,-1148.16,0.00010172,2]
[348725762,1736754643527,-500.0,0.00010172,2]
[348725763,1736754643537,-1353.35,0.00010172,2]
[348725764,1736754643547,-500.0,0.00010172,2]
[348725765,1736754643556,-500.0,0.00010172,2]
[348725766,1736754643565,-591.28,0.00010172,2]
[348725767,1736754643576,-507.77,0.00010172,2]
[348725768,1736754643588,-675.88,0.00010172,2]
[348725769,1736754643597,-1646.81,0.00010172,2]
[348725770,1736754643607,-667.37,0.00010172,2]
[348725771,1736754643616,-500.0,0.00010172,2]
[348725772,1736754643627,-500.0,0.00010172,2]
[348725773,1736754643636,-500.0,0.00010172,2]
[348725774,1736754643645,-500.0,0.00010172,2]
[348725775,1736754643656,-2000.0,0.00010201,2]
[348725776,1736754643666,-200.0,0.00010201,2]
[348725777,1736754643675,-2000.0,0.00010201,2]
[348725778,1736754643685,-200.0,0.00010201,2]
[348725779,1736754643694,-200.0,0.00010201,2]
[348725780,1736754643703,-233.25659439,0.0001021,2]
[348725781,1736754643712,-1058.0,0.00010253,2]
[348725782,1736754643722,-1315.81,0.00010271,2]
[348725783,1736754643734,-4330.27,0.00010271,2]
[348725784,1736754643744,-500.0,0.00010271,2]
[348725785,1736754643753,-532.02,0.00010271,2]
[348725786,1736754643764,-789.66,0.00010271,2]
[348725787,1736754643774,-5052.17,0.00010271,2]
[348725788,1736754643783,-1550.3,0.00010271,2]
[348725789,1736754643793,-873.34,0.00010271,2]
[348725790,1736754643802,-2120.68,0.00010271,2]
[348725791,1736754643811,-562.36,0.00010271,2]
[348725792,1736754643821,-618.14,0.00010271,2]
[348725793,1736754643830,-546.93,0.00010271,2]
[348725794,1736754643839,-1167.47,0.00010271,2]
[348725795,1736754643848,-935.9,0.00010271,2]
[348725796,1736754643857,-525.9,0.00010271,2]
[348725797,1736754643867,-500.0,0.00010271,2]
[348725798,1736754643876,-500.0,0.00010271,2]
[348725799,1736754643886,-2549.77,0.00010271,2]
[348725800,1736754643895,-500.0,0.00010272,2]
[348725801,1736754643904,-500.0,0.00010272,2]
[348725802,1736754643913,-500.0,0.00010272,2]
[348725803,1736754643922,-706.07,0.00010272,2]
[348725804,1736754643931,-521.25988045,0.00010272,2]
[348725805,1736754643940,-500.0,0.00010272,2]
[348725806,1736754643951,-625.36,0.00010272,2]
[348725807,1736754643960,-517.06,0.00010272,2]
[348725808,1736754643969,-500.0,0.00010272,2]
[348725809,1736754643978,-500.0,0.00010272,2]
[348725810,1736754643987,-500.0,0.00010272,2]
[348725811,1736754643996,-500.0,0.00010272,2]
[348725812,1736754644005,-500.0,0.00010272,2]
[348725813,1736754644017,-507.30900962,0.00010272,2]
[348725814,1736754644026,-500.0,0.00010272,2]
[348725815,1736754644035,-341.45909219,0.00010272,2]
[348725816,1736754644044,-500.0,0.00010272,2]
[348725817,1736754644054,-500.0,0.00010272,2]
[348725818,1736754644064,-500.0,0.00010272,2]
[348725819,1736754644074,-516.24182189,0.00010272,2]
[348725820,1736754644083,-540.93,0.00010272,2]
[348725821,1736754644094,-503.8132128,0.00010272,2]
[348725822,1736754644103,-500.0,0.00010272,2]
[348725823,1736754644113,-500.0,0.00010272,2]
[348725824,1736754644122,-578.96,0.00010272,2]
[348725825,1736754644132,-319.95990996,0.00010272,2]
[348725826,1736754644141,-500.0,0.00010272,2]
[348725827,1736754644150,-531.70530757,0.00010272,2]
[348725828,1736754644160,-500.0,0.00010272,2]
[348725829,1736754644169,-500.0,0.00010272,2]
[348725830,1736754644178,-500.0,0.00010272,2]
[348725831,1736754644187,-500.0,0.00010272,2]
[348725832,1736754644197,-500.0,0.00010272,2]
[348725833,1736754644206,-500.0,0.00010272,2]
[348725834,1736754644216,-500.0,0.00010272,2]
[348725835,1736754644225,-500.0,0.00010272,2]
[348725836,1736754644234,-500.0,0.00010272,2]
[348725837,1736754644243,-500.0,0.00010272,2]
[348725838,1736754644253,-500.0,0.00010272,2]
[348725839,1736754644263,-574.42,0.00010272,2]
[348725840,1736754644272,-500.0,0.00010272,2]
[348725841,1736754644281,-679.8,0.00010272,2]
[348725842,1736754644290,-500.0,0.00010272,2]
[348725843,1736754644300,-500.0,0.00010272,2]
[348725844,1736754644309,-500.0,0.00010272,2]
[348725845,1736754644319,-538.44,0.00010272,2]
[348725846,1736754644329,-500.0,0.00010272,2]
[348725847,1736754644339,-500.0,0.00010272,2]
[348725848,1736754644348,-500.0,0.00010272,2]
[348725849,1736754644358,-546.71,0.00010272,2]
[348725850,1736754644368,-500.0,0.00010272,2]
[348725851,1736754644377,-500.0,0.00010272,2]
[348725852,1736754644387,-500.0,0.00010272,2]
[348725853,1736754644396,-500.0,0.00010272,2]
[348725854,1736754644405,-500.0,0.00010272,2]
[348725855,1736754644415,-500.0,0.00010272,2]
[348725856,1736754644424,-500.0,0.00010272,2]
[348725857,1736754644433,-500.0,0.00010272,2]
[348725858,1736754644443,-500.0,0.00010272,2]
[348725859,1736754644453,-613.85,0.00010272,2]
[348725860,1736754644462,-500.0,0.00010272,2]
[348725861,1736754644472,-500.0,0.00010272,2]
[348725862,1736754644483,-573.82636993,0.00010272,2]
[348725863,1736754644492,-500.0,0.00010272,2]
[348725864,1736754644501,-500.0,0.00010272,2]
[348725865,1736754644511,-500.0,0.00010272,2]
[348725866,1736754644521,-562.22,0.00010272,2]
[348725867,1736754644535,-500.0,0.00010272,2]
[348725868,1736754644545,-500.0,0.00010272,2]
[348725869,1736754644632,-500.0,0.00010272,2]
[348725870,1736754644642,-500.0,0.00010272,2]
[348725871,1736754644652,-500.0,0.00010272,2]
[348725872,1736754644661,-609.36,0.00010272,2]
[348725873,1736754644671,-500.0,0.00010272,2]
[348725874,1736754644680,-502.26,0.00010272,2]
[348725875,1736754644689,-511.88,0.00010272,2]
[348725876,1736754644699,-500.0,0.00010272,2]
[348725877,1736754644709,-621.14,0.00010272,2]
[348725878,1736754644718,-500.0,0.00010272,2]
[348725879,1736754644727,-500.0,0.00010272,2]
[348725880,1736754644736,-500.0,0.00010272,2]
[348725881,1736754644746,-505.11329816,0.00010272,2]
[348725882,1736754644755,-500.0,0.00010272,2]
[348725883,1736754644767,-500.0,0.00010272,2]
[348725884,1736754644776,-500.0,0.00010272,2]
[348725885,1736754644785,-622.46,0.00010272,2]
[348725886,1736754644794,-507.15,0.00010272,2]
[348725887,1736754644804,-500.0,0.00010272,2]
[348725888,1736754644814,-961.927568,0.00010272,2]
[348725889,1736754644824,-523.35,0.00010272,2]
[348725890,1736754644833,-946.56033,0.00010272,2]
[348725891,1736754644842,-500.0,0.00010272,2]
[348725892,1736754644851,-500.0,0.00010272,2]
[348725893,1736754644860,-500.0,0.00010272,2]
[348725894,1736754644870,-2292.91,0.00010272,2]
[348725895,1736754644880,-500.0,0.00010272,2]
[348725896,1736754644891,-500.0,0.00010272,2]
[348725897,1736754644900,-500.0,0.00010272,2]
[348725898,1736754644910,-2014.21,0.00010272,2]
[348725899,1736754644919,-500.0,0.00010272,2]
[348725900,1736754644930,-500.0,0.00010272,2]
[348725901,1736754644939,-500.84,0.00010272,2]
[348725902,1736754644948,-523.63,0.00010272,2]
[348725903,1736754644957,-2057.2,0.00010272,2]
[348725904,1736754644967,-500.0,0.00010272,2]
[348725905,1736754644976,-500.0,0.00010272,2]
[348725906,1736754644986,-500.0,0.00010272,2]
[348725907,1736754644995,-500.0,0.00010272,2]
[348725908,1736754645004,-500.0,0.00010272,2]
[348725909,1736754645016,-500.0,0.00010272,2]
[348725910,1736754645025,-500.0,0.00010272,2]
[348725911,1736754645035,-500.0,0.00010272,2]
[348725912,1736754645044,-500.0,0.00010272,2]
[348725913,1736754645053,-500.0,0.00010272,2]
[348725914,1736754645063,-500.0,0.00010272,2]
[348725915,1736754645072,-500.0,0.00010272,2]
[348725916,1736754645081,-656.41,0.00010272,2]
[348725917,1736754645090,-500.0,0.00010272,2]
[348725918,1736754645099,-500.0,0.00010272,2]
[348725919,1736754645108,-500.0,0.00010272,2]
[348725920,1736754645117,-500.0,0.00010272,2]
[348725921,1736754645126,-500.0,0.00010272,2]
[348725922,1736754645135,-504.91558114,0.00010272,2]
[348725923,1736754645144,-518.34,0.00010272,2]
[348725924,1736754645153,-500.0,0.00010272,2]
[348725925,1736754645162,-500.0,0.00010272,2]
[348725926,1736754645171,-740.67,0.00010272,2]
[348725927,1736754645180,-500.0,0.00010272,2]
[348725928,1736754645189,-547.14,0.00010272,2]
[348725929,1736754645198,-500.0,0.00010272,2]
[348725930,1736754645207,-183.06,0.00010272,2]
[348725931,1736754645216,-500.0,0.00010272,2]
[348725932,1736754645225,-500.0,0.00010272,2]
[348725933,1736754645234,-629.98,0.00010272,2]
[348725934,1736754645243,-500.0,0.00010273,2]
[348725935,1736754645252,-500.0,0.00010273,2]
[348725936,1736754645263,-838.23,0.00010273,2]
[348725937,1736754645272,-1002.54,0.00010273,2]
[348725938,1736754645282,-925.65,0.00010273,2]
[348725939,1736754645291,-701.47,0.00010273,2]
[348725940,1736754645300,-2045.55,0.00010273,2]
[348725941,1736754645309,-1043.64,0.00010273,2]
[348725942,1736754645319,-2111.23,0.00010273,2]
[348725943,1736754645328,-500.0,0.00010273,2]